[Event "51st Rilton Cup 2023-24"]
[Site "Stockholm"]
[Date "2024.01.05"]
[Round "9.20"]
[White "Moksh Amit Doshi"]
[Black "Mamedov, Edgar"]
[Result "1-0"]
[ECO "D52"]
[WhiteElo "2366"]
[BlackElo "2321"]
[Annotator "RC"]
[PlyCount "129"]
[EventDate "2023.12.27"]
[EventType "swiss"]
[EventCountry "SWE"]
[SourceTitle "playchess.com"]
[Source "ChessBase"]
[SourceQuality "1"]
[TimeControl "40/5400+30:1800+30"]

1. d4 {[%emt 0:01:56]} d5 {[%emt 0:00:15]} 2. c4 {[%emt 0:00:08]} e6 {[%emt 0:00:11]} 3. Nf3 {[%emt 0:01:23]} Nf6 {[%emt 0:00:06]} 4. Nc3 {[%emt 0:00:08]} c6 {[%emt 0:00:06]} 5. Bg5 {[%emt 0:00:08]} Nbd7 {[%emt 0:00:12]} 6. e3 {[%emt 0:00:09]} Qa5 {[%emt 0:00:20]} 7. Nd2 {[%emt 0:00:08]} dxc4 {[%emt 0:00:49]} 8. Bxf6 {[%emt 0:00:09]} Nxf6 {[%emt 0:00:06]} 9. Nxc4 {[%emt 0:00:08]} Qc7 {[%emt 0:00:05]} 10. Rc1 {[%emt 0:00:10]} Be7 {[%emt 0:01:18]} 11. g3 {[%emt 0:00:57]} O-O {[%emt 0:00:29]} 12. Bg2 {[%emt 0:00:18]} Rd8 {[%emt 0:01:18]} 13. O-O {[%emt 0:00:57]} Bd7 {[%emt 0:01:12]} 14. e4 {[%emt 0:00:11]} b5 {[%emt 0:03:21]} 15. Ne3 {[%emt 0:00:09]} Qb6 {[%emt 0:06:02]} 16. e5 {[%emt 0:00:12]} Nd5 {[%emt 0:00:05]} 17. Ne4 {[%emt 0:00:11]} Be8 {[%emt 0:04:06]} 18. Rc2 {[%emt 0:00:18]} Rd7 {[%emt 0:27:00]} 19. Rd2 {[%emt 0:11:01]} Rad8 {[%emt 0:03:10]} 20. Qg4 {[%emt 0:20:44]} Kh8 {[%emt 0:04:15]} 21. Rc1 {[%emt 0:03:33]} Rc7 {[%emt 0:22:00]} 22. Nc5 {[%emt 0:05:45]} Qa5 {[%emt 0:05:51]} 23. Qd1 {[%emt 0:12:28]} Bg5 {[%emt 0:00:59]} 24. Rd3 {[%emt 0:09:23]} Nb4 {[%emt 0:07:01]} 25. Ra3 {[%emt 0:02:38]} Qb6 {[%emt 0:00:07]} 26. Rb3 {[%emt 0:03:19]} Nd5 {[%emt 0:06:12]} 27. h4 {[%emt 0:03:25]} Be7 {[%emt 0:05:47]} 28. Nc4 {[%emt 0:04:34]} bxc4 {[%emt 0:00:05]} 29. Rxb6 {[%emt 0:03:38]} axb6 {[%emt 0:00:03]} 30. Ne4 {[%emt 0:00:28]} b5 {[%emt 0:00:04]} 31. a3 {[%emt 0:01:31]} Nb6 {[%emt 0:00:36]} 32. Rc2 {[%emt 0:06:12]} Rcd7 {[%emt 0:00:04]} 33. Rd2 {[%emt 0:00:06]} Na4 {[%emt 0:00:30]} 34. Qc2 {[%emt 0:03:05]} c5 {[%emt 0:01:54]} 35. dxc5 {[%emt 0:00:32]} Rxd2 {[%emt 0:00:05]} 36. Nxd2 {[%emt 0:00:07]} Nxc5 {[%emt 0:00:09]} 37. b3 {[%emt 0:01:50]} Nd3 {[%emt 0:01:17]} 38. bxc4 {[%emt 0:00:33]} Ne1 {[%emt 0:01:34]} 39. Qc3 {[%emt 0:01:15]} Rd3 {[%emt 0:00:40]} 40. Qc1 {[%emt 0:01:48]} Nxg2 {[%emt 0:00:05]} 41. Kxg2 {[%emt 0:30:05]} Bc6+ {[%emt 0:08:34]} 42. Kh2 {[%emt 0:00:00]} b4 {[%emt 0:09:41]} 43. axb4 {[%emt 0:00:00]} g5 {[%emt 0:02:16]} 44. b5 {[%emt 0:00:00]} Ba8 {[%emt 0:00:04]} 45. c5 {[%emt 0:00:00]} gxh4 {[%emt 0:00:37]} 46. c6 {[%emt 0:00:00]} hxg3+ {[%emt 0:00:10]} 47. fxg3 {[%emt 0:00:00]} Bg5 {[%emt 0:00:14]} 48. c7 {[%emt 0:00:00]} Bb7 {[%emt 0:00:05]} 49. c8=Q+ {[%emt 0:00:00]} Bxc8 {[%emt 0:00:05]} 50. Qxc8+ {[%emt 0:00:00]} Rd8 {[%emt 0:00:02]} 51. Qc7 {[%emt 0:00:00]} Rxd2+ {[%emt 0:00:05]} 52. Kh3 {[%emt 0:00:00]} Kg7 {[%emt 0:00:17]} 53. b6 {[%emt 0:00:00]} Bd8 {[%emt 0:00:05]} 54. Qc6 {[%emt 0:00:00]} Bxb6 {[%emt 0:01:16]} 55. Qxb6 {[%emt 0:00:00]} Rd1 {[%emt 0:00:17]} 56. Qf2 {[%emt 0:00:00]} Rh1+ {[%emt 0:00:11]} 57. Kg4 {[%emt 0:00:00]} Rh6 {[%emt 0:00:04]} 58. Kf4 {[%emt 0:00:00]} Rh5 {[%emt 0:01:09]} 59. Ke4 {[%emt 0:00:00]} Rf5 {[%emt 0:00:07]} 60. Qa7 {[%emt 0:00:00]} h5 {[%emt 0:00:11]} 61. Qe7 {[%emt 0:00:00]} Kg6 {[%emt 0:00:27]} 62. Qf8 {[%emt 0:00:00]} Kh7 {[%emt 0:00:03]} 63. Kd4 {[%emt 0:00:00]} Kg6 {[%emt 0:00:08]} 64. Qg8+ {[%emt 0:00:00]} Kh6 {[%emt 0:00:04]} 65. Ke4 {[%emt 0:04:55]} 1-0

[Event "51st Rilton Cup 2023-24"]
[Site "Stockholm"]
[Date "2024.01.05"]
[Round "9.21"]
[White "Kavutskiy, Konstantin"]
[Black "Yordanov, Lachezar"]
[Result "1/2-1/2"]
[ECO "D00"]
[WhiteElo "2384"]
[BlackElo "2312"]
[Annotator "RC"]
[PlyCount "83"]
[EventDate "2023.12.27"]
[EventType "swiss"]
[EventCountry "SWE"]
[SourceTitle "playchess.com"]
[Source "ChessBase"]
[SourceQuality "1"]
[TimeControl "40/5400+30:1800+30"]

1. d4 {[%emt 0:06:16]} Nf6 {[%emt 0:03:18]} 2. Bg5 {[%emt 0:00:00]} d5 {[%emt 0:00:09]} 3. e3 {[%emt 0:00:00]} c5 {[%emt 0:02:10]} 4. Bxf6 {[%emt 0:00:00]} gxf6 {[%emt 0:00:14]} 5. dxc5 {[%emt 0:00:00]} e6 {[%emt 0:00:36]} 6. Nf3 {[%emt 0:00:00]} Nd7 {[%emt 0:00:33]} 7. c4 {[%emt 0:00:00]} dxc4 {[%emt 0:01:36]} 8. Bxc4 {[%emt 0:00:00]} Nxc5 {[%emt 0:02:46]} 9. Qc2 {[%emt 0:00:00]} Bd7 {[%emt 0:01:58]} 10. O-O {[%emt 0:01:25]} b5 {[%emt 0:00:46]} 11. Be2 {[%emt 0:00:58]} Rc8 {[%emt 0:00:06]} 12. Rd1 {[%emt 0:10:23]} Bg7 {[%emt 0:05:33]} 13. Bxb5 {[%emt 0:05:30]} O-O {[%emt 0:02:09]} 14. Nc3 {[%emt 0:05:05]} Qe7 {[%emt 0:01:11]} 15. Bxd7 {[%emt 0:02:36]} Nxd7 {[%emt 0:00:01]} 16. e4 {[%emt 0:01:20]} Nb6 {[%emt 0:00:40]} 17. Rd3 {[%emt 0:01:43]} Rc5 {[%emt 0:00:36]} 18. Rad1 {[%emt 0:03:44]} Rfc8 {[%emt 0:00:18]} 19. Qe2 {[%emt 0:04:28]} h6 {[%emt 0:01:34]} 20. Nd4 {[%emt 0:05:13]} Kh7 {[%emt 0:05:24]} 21. f4 {[%emt 0:03:33]} f5 {[%emt 0:00:16]} 22. e5 {[%emt 0:03:39]} Nc4 {[%emt 0:02:44]} 23. Kh1 {[%emt 0:06:22]} Qb7 {[%emt 0:02:13]} 24. Nb3 {[%emt 0:00:24]} R5c7 {[%emt 0:00:13]} 25. h3 {[%emt 0:02:58]} Qb4 {[%emt 0:05:26]} 26. Rd4 {[%emt 0:00:42]} Qb7 {[%emt 0:01:51]} 27. R1d3 {[%emt 0:06:12]} Qb6 {[%emt 0:02:21]} 28. g4 {[%emt 0:03:24]} fxg4 {[%emt 0:00:50]} 29. hxg4 {[%emt 0:00:36]} Qb7+ {[%emt 0:00:09]} 30. Kh2 {[%emt 0:00:22]} f6 {[%emt 0:01:34]} 31. Qc2 {[%emt 0:12:25]} Kg8 {[%emt 0:04:37]} 32. Rd8+ {[%emt 0:00:15]} Kf7 {[%emt 0:00:09]} 33. exf6 {[%emt 0:03:27]} Bxf6 {[%emt 0:00:31]} 34. R3d7+ {[%emt 0:03:59]} Rxd7 {[%emt 0:00:06]} 35. Qh7+ {[%emt 0:00:09]} Bg7 {[%emt 0:00:03]} 36. Qg8+ {[%emt 0:00:17]} Kf6 {[%emt 0:01:22]} 37. Rxc8 {[%emt 0:02:17]} Qf3 {[%emt 0:02:12]} 38. Rf8+ {[%emt 0:03:59]} Bxf8 {[%emt 0:00:13]} 39. Qxf8+ {[%emt 0:00:05]} Kg6 {[%emt 0:13:45]} 40. Qg8+ {[%emt 0:01:24]} Kf6 {[%emt 0:00:31]} 41. Qf8+ {[%emt 0:30:15]} Kg6 {[%emt 0:33:22]} 42. Qg8+ {[%emt 0:00:06]} 1/2-1/2

[Event "51st Rilton Cup 2023-24"]
[Site "Stockholm"]
[Date "2024.01.05"]
[Round "9.22"]
[White "Eggleston, David J"]
[Black "Farokhi, Keyvan"]
[Result "1/2-1/2"]
[ECO "B12"]
[WhiteElo "2353"]
[BlackElo "2298"]
[Annotator "RC"]
[PlyCount "105"]
[EventDate "2023.12.27"]
[EventType "swiss"]
[EventCountry "SWE"]
[SourceTitle "playchess.com"]
[Source "ChessBase"]
[SourceQuality "1"]
[TimeControl "40/5400+30:1800+30"]

1. e4 {[%emt 0:00:01]} c6 {[%emt 0:00:21]} 2. d4 {[%emt 0:00:15]} d5 {[%emt 0:00:08]} 3. e5 {[%emt 0:00:06]} c5 {[%emt 0:00:05]} 4. dxc5 {[%emt 0:00:16]} e6 {[%emt 0:00:09]} 5. Nf3 {[%emt 0:00:10]} Bxc5 {[%emt 0:00:10]} 6. Bd3 {[%emt 0:00:12]} Ne7 {[%emt 0:03:09]} 7. a3 {[%emt 0:02:27]} a6 {[%emt 0:00:20]} 8. b4 {[%emt 0:00:28]} Ba7 {[%emt 0:00:05]} 9. O-O {[%emt 0:01:26]} Nbc6 {[%emt 0:00:44]} 10. Bb2 {[%emt 0:00:35]} Ng6 {[%emt 0:00:10]} 11. c4 {[%emt 0:02:59]} d4 {[%emt 0:20:46]} 12. Re1 {[%emt 0:03:04]} Bb8 {[%emt 0:01:10]} 13. Bxg6 {[%emt 0:12:44]} hxg6 {[%emt 0:00:08]} 14. b5 {[%emt 0:06:52]} Na5 {[%emt 0:11:46]} 15. Qd3 {[%emt 0:02:18]} axb5 {[%emt 0:01:07]} 16. cxb5 {[%emt 0:01:15]} Qd5 {[%emt 0:14:52]} 17. Nbd2 {[%emt 0:00:30]} Rh5 {[%emt 0:05:36]} 18. Re4 {[%emt 0:03:16]} Bd7 {[%emt 0:03:52]} 19. a4 {[%emt 0:00:48]} Ba7 {[%emt 0:00:33]} 20. Bxd4 {[%emt 0:03:32]} Rc8 {[%emt 0:05:46]} 21. Qe3 {[%emt 0:01:27]} Nc4 {[%emt 0:00:51]} 22. Nxc4 {[%emt 0:08:15]} Rxc4 {[%emt 0:00:58]} 23. Re1 {[%emt 0:01:05]} Bxd4 {[%emt 0:03:01]} 24. Rxd4 {[%emt 0:03:17]} Rxd4 {[%emt 0:00:07]} 25. Qxd4 {[%emt 0:00:49]} Qxd4 {[%emt 0:00:09]} 26. Nxd4 {[%emt 0:00:09]} Rh4 {[%emt 0:00:24]} 27. Rd1 {[%emt 0:00:17]} Re4 {[%emt 0:06:08]} 28. a5 {[%emt 0:05:21]} Rxe5 {[%emt 0:03:41]} 29. a6 {[%emt 0:00:18]} bxa6 {[%emt 0:00:31]} 30. b6 {[%emt 0:00:05]} Bc8 {[%emt 0:00:24]} 31. Nc6 {[%emt 0:02:29]} Rd5 {[%emt 0:00:05]} 32. Rxd5 {[%emt 0:00:09]} exd5 {[%emt 0:00:05]} 33. Na5 {[%emt 0:00:06]} Kd8 {[%emt 0:07:27]} 34. b7 {[%emt 0:00:22]} Bxb7 {[%emt 0:00:02]} 35. Nxb7+ {[%emt 0:00:04]} Kc7 {[%emt 0:00:08]} 36. Nc5 {[%emt 0:00:47]} Kb6 {[%emt 0:00:14]} 37. Nd3 {[%emt 0:00:20]} Kb5 {[%emt 0:03:09]} 38. Kf1 {[%emt 0:00:05]} a5 {[%emt 0:01:44]} 39. Ke2 {[%emt 0:01:37]} a4 {[%emt 0:01:56]} 40. Kd2 {[%emt 0:00:46]} Kc4 {[%emt 0:00:47]} 41. Kc2 {[%emt 0:30:22]} f6 {[%emt 0:35:55]} 42. h4 {[%emt 0:07:42]} a3 {[%emt 0:02:13]} 43. Nc1 {[%emt 0:00:38]} d4 {[%emt 0:00:00]} 44. f3 {[%emt 0:00:00]} g5 {[%emt 0:00:00]} 45. hxg5 {[%emt 0:00:00]} fxg5 {[%emt 0:00:00]} 46. Kd2 {[%emt 0:00:00]} d3 {[%emt 0:00:00]} 47. g3 {[%emt 0:00:00]} g4 {[%emt 0:00:00]} 48. fxg4 {[%emt 0:00:00]} g5 {[%emt 0:00:00]} 49. Na2 {[%emt 0:00:00]} Kb3 {[%emt 0:00:00]} 50. Kxd3 {[%emt 0:00:00]} Kxa2 {[%emt 0:00:00]} 51. Kc2 {[%emt 0:00:00]} Ka1 {[%emt 0:00:00]} 52. Kc1 {[%emt 0:00:00]} a2 {[%emt 0:00:00]} 53. Kc2 {[%emt 0:00:00]} 1/2-1/2

[Event "51st Rilton Cup 2023-24"]
[Site "Stockholm"]
[Date "2024.01.05"]
[Round "9.23"]
[White "Citak, Selim"]
[Black "Krawczyk, Flawian"]
[Result "0-1"]
[ECO "E51"]
[WhiteElo "2350"]
[BlackElo "2251"]
[Annotator "RC"]
[PlyCount "42"]
[EventDate "2023.12.27"]
[EventType "swiss"]
[EventCountry "SWE"]
[SourceTitle "playchess.com"]
[Source "ChessBase"]
[SourceQuality "1"]
[TimeControl "40/5400+30:1800+30"]

1. d4 {[%emt 0:00:09]} Nf6 {[%emt 0:00:05]} 2. c4 {[%emt 0:00:06]} e6 {[%emt 0:00:03]} 3. Nf3 {[%emt 0:00:31]} d5 {[%emt 0:00:04]} 4. Nc3 {[%emt 0:00:19]} Bb4 {[%emt 0:00:03]} 5. e3 {[%emt 0:00:22]} O-O {[%emt 0:00:51]} 6. Bd2 {[%emt 0:00:13]} Re8 {[%emt 0:01:23]} 7. Rc1 {[%emt 0:01:07]} c6 {[%emt 0:03:34]} 8. Qc2 {[%emt 0:00:50]} Nbd7 {[%emt 0:00:42]} 9. Be2 {[%emt 0:02:51]} dxc4 {[%emt 0:06:12]} 10. Bxc4 {[%emt 0:00:20]} Bd6 {[%emt 0:02:00]} 11. O-O {[%emt 0:09:30]} h6 {[%emt 0:01:06]} 12. e4 {[%emt 0:08:34]} e5 {[%emt 0:05:23]} 13. Qb3 {[%emt 0:17:18]} Qe7 {[%emt 0:04:03]} 14. d5 {[%emt 0:08:24]} b5 {[%emt 0:05:04]} 15. Bd3 {[%emt 0:01:19]} Nc5 {[%emt 0:00:14]} 16. Qc2 {[%emt 0:00:09]} b4 {[%emt 0:00:14]} 17. dxc6 {[%emt 0:07:11]} bxc3 {[%emt 0:00:06]} 18. Bxc3 {[%emt 0:00:18]} Bg4 {[%emt 0:08:13]} 19. Nxe5 {[%emt 0:03:17]} Bxe5 {[%emt 0:02:17]} 20. Bxe5 {[%emt 0:00:19]} Nxd3 {[%emt 0:01:19]} 21. Bxf6 {[%emt 0:00:22]} Qxe4 {[%emt 0:00:18]} 0-1

[Event "51st Rilton Cup 2023-24"]
[Site "Stockholm"]
[Date "2024.01.05"]
[Round "9.24"]
[White "Logdahl, Harald"]
[Black "Nyysti, Sampsa"]
[Result "0-1"]
[ECO "A36"]
[WhiteElo "2187"]
[BlackElo "2339"]
[Annotator "RC"]
[PlyCount "104"]
[EventDate "2023.12.27"]
[EventType "swiss"]
[EventCountry "SWE"]
[SourceTitle "playchess.com"]
[Source "ChessBase"]
[SourceQuality "1"]
[TimeControl "40/5400+30:1800+30"]

1. e4 {[%emt 0:15:26]} c5 {[%emt 0:00:03]} 2. c4 {[%emt 0:01:49]} Nc6 {[%emt 0:00:06]} 3. Nc3 {[%emt 0:00:08]} g6 {[%emt 0:00:37]} 4. g3 {[%emt 0:01:21]} Bg7 {[%emt 0:00:06]} 5. Bg2 {[%emt 0:00:06]} e6 {[%emt 0:06:49]} 6. Nge2 {[%emt 0:00:24]} Nge7 {[%emt 0:00:04]} 7. O-O {[%emt 0:00:12]} d6 {[%emt 0:02:27]} 8. d3 {[%emt 0:00:08]} O-O {[%emt 0:04:13]} 9. Be3 {[%emt 0:00:11]} Nd4 {[%emt 0:00:22]} 10. Qd2 {[%emt 0:00:18]} b6 {[%emt 0:03:28]} 11. Bh6 {[%emt 0:02:11]} Bb7 {[%emt 0:03:46]} 12. Bxg7 {[%emt 0:00:33]} Kxg7 {[%emt 0:05:29]} 13. f4 {[%emt 0:05:42]} Qd7 {[%emt 0:01:53]} 14. Nxd4 {[%emt 0:02:27]} cxd4 {[%emt 0:00:02]} 15. Ne2 {[%emt 0:00:11]} e5 {[%emt 0:01:18]} 16. f5 {[%emt 0:00:24]} gxf5 {[%emt 0:11:37]} 17. Qg5+ {[%emt 0:10:54]} Ng6 {[%emt 0:00:29]} 18. Bh3 {[%emt 0:05:47]} Qe7 {[%emt 0:01:00]} 19. Qxf5 {[%emt 0:03:02]} h5 {[%emt 0:13:07]} 20. Qf3 {[%emt 0:01:54]} Qg5 {[%emt 0:03:11]} 21. Kh1 {[%emt 0:04:25]} f5 {[%emt 0:04:15]} 22. Bxf5 {[%emt 0:02:52]} Ne7 {[%emt 0:00:34]} 23. h4 {[%emt 0:04:11]} Qxf5 {[%emt 0:00:07]} 24. exf5 {[%emt 0:00:48]} Bxf3+ {[%emt 0:00:03]} 25. Rxf3 {[%emt 0:00:08]} Rxf5 {[%emt 0:00:44]} 26. Raf1 {[%emt 0:01:01]} Rxf3 {[%emt 0:03:22]} 27. Rxf3 {[%emt 0:00:06]} b5 {[%emt 0:00:31]} 28. cxb5 {[%emt 0:04:04]} Rc8 {[%emt 0:00:21]} 29. Ng1 {[%emt 0:00:52]} Rc2 {[%emt 0:01:48]} 30. Nh3 {[%emt 0:00:11]} Rxb2 {[%emt 0:01:38]} 31. Ng5 {[%emt 0:02:32]} Kg6 {[%emt 0:02:46]} 32. Rf7 {[%emt 0:08:09]} Nf5 {[%emt 0:00:39]} 33. Rxa7 {[%emt 0:00:25]} Nxg3+ {[%emt 0:03:15]} 34. Kg1 {[%emt 0:00:05]} Rxb5 {[%emt 0:02:32]} 35. Ra6 {[%emt 0:03:28]} Rb2 {[%emt 0:03:36]} 36. Rxd6+ {[%emt 0:01:47]} Kf5 {[%emt 0:00:02]} 37. a4 {[%emt 0:06:56]} Ra2 {[%emt 0:00:56]} 38. Nf7 {[%emt 0:02:13]} e4 {[%emt 0:06:30]} 39. dxe4+ {[%emt 0:01:21]} Kxe4 {[%emt 0:00:05]} 40. Ng5+ {[%emt 0:01:03]} Ke3 {[%emt 0:01:21]} 41. Re6+ {[%emt 0:30:22]} Kf4 {[%emt 0:33:03]} 42. Rd6 {[%emt 0:00:00]} Nf5 {[%emt 0:00:00]} 43. Rd5 {[%emt 0:00:00]} Rxa4 {[%emt 0:00:00]} 44. Kh2 {[%emt 0:00:00]} Kg4 {[%emt 0:00:00]} 45. Ne6 {[%emt 0:00:00]} Ra2+ {[%emt 0:00:00]} 46. Kg1 {[%emt 0:00:00]} Rd2 {[%emt 0:00:00]} 47. Nc5 {[%emt 0:00:00]} Nxh4 {[%emt 0:00:00]} 48. Ne4 {[%emt 0:00:00]} Nf3+ {[%emt 0:00:00]} 49. Kf1 {[%emt 0:00:00]} Rd1+ {[%emt 0:00:00]} 50. Kg2 {[%emt 0:01:52]} Kf4 {[%emt 0:00:00]} 51. Nf6 {[%emt 0:01:16]} Rd2+ {[%emt 0:00:00]} 52. Kf1 {[%emt 0:01:27]} Ke3 {[%emt 0:00:00]} 0-1

[Event "51st Rilton Cup 2023-24"]
[Site "Stockholm"]
[Date "2024.01.05"]
[Round "9.25"]
[White "Starosta, Martyna"]
[Black "Dotzer, Lukas"]
[Result "1/2-1/2"]
[ECO "B50"]
[WhiteElo "2067"]
[BlackElo "2338"]
[Annotator "RC"]
[PlyCount "61"]
[EventDate "2023.12.27"]
[EventType "swiss"]
[EventCountry "SWE"]
[SourceTitle "playchess.com"]
[Source "ChessBase"]
[SourceQuality "1"]
[TimeControl "40/5400+30:1800+30"]

1. e4 {[%emt 0:00:09]} c5 {[%emt 0:00:04]} 2. Nf3 {[%emt 0:00:00]} d6 {[%emt 0:00:05]} 3. c3 {[%emt 0:00:07]} Nf6 {[%emt 0:00:20]} 4. Be2 {[%emt 0:00:06]} g6 {[%emt 0:04:49]} 5. O-O {[%emt 0:00:09]} Bg7 {[%emt 0:01:14]} 6. Bb5+ {[%emt 0:00:09]} Nbd7 {[%emt 0:05:35]} 7. Re1 {[%emt 0:00:08]} a6 {[%emt 0:05:39]} 8. Bf1 {[%emt 0:00:06]} e5 {[%emt 0:08:40]} 9. d4 {[%emt 0:03:11]} cxd4 {[%emt 0:07:42]} 10. cxd4 {[%emt 0:00:25]} O-O {[%emt 0:01:33]} 11. dxe5 {[%emt 0:11:11]} dxe5 {[%emt 0:04:06]} 12. Nc3 {[%emt 0:02:05]} b5 {[%emt 0:04:21]} 13. Bg5 {[%emt 0:12:27]} h6 {[%emt 0:08:35]} 14. Bxf6 {[%emt 0:06:52]} Bxf6 {[%emt 0:07:55]} 15. Qd2 {[%emt 0:05:15]} Bg7 {[%emt 0:06:26]} 16. Red1 {[%emt 0:05:58]} Kh7 {[%emt 0:04:51]} 17. Rac1 {[%emt 0:10:28]} Qa5 {[%emt 0:05:20]} 18. Qd5 {[%emt 0:09:31]} Nb6 {[%emt 0:05:28]} 19. Qc5 {[%emt 0:04:26]} Na4 {[%emt 0:02:35]} 20. Qa3 {[%emt 0:03:13]} Bb7 {[%emt 0:06:13]} 21. b3 {[%emt 0:06:41]} Qxc3 {[%emt 0:01:21]} 22. Rxc3 {[%emt 0:00:41]} Nxc3 {[%emt 0:00:05]} 23. Rd7 {[%emt 0:00:58]} Bxe4 {[%emt 0:00:46]} 24. Qd6 {[%emt 0:05:08]} Bf5 {[%emt 0:01:37]} 25. Rc7 {[%emt 0:00:47]} e4 {[%emt 0:02:08]} 26. Ne5 {[%emt 0:00:52]} Rad8 {[%emt 0:01:13]} 27. Nd7 {[%emt 0:01:25]} Kg8 {[%emt 0:02:37]} 28. Qc6 {[%emt 0:02:07]} Rxd7 {[%emt 0:00:57]} 29. Rxd7 {[%emt 0:00:07]} Bxd7 {[%emt 0:00:05]} 30. Qxd7 {[%emt 0:00:06]} Nxa2 {[%emt 0:00:39]} 31. Qc6 {[%emt 0:01:34]} 1/2-1/2

[Event "51st Rilton Cup 2023-24"]
[Site "Stockholm"]
[Date "2024.01.05"]
[Round "9.26"]
[White "Tulchynskyi, Feliks"]
[Black "Borgaonkar Akshay"]
[Result "1/2-1/2"]
[ECO "E71"]
[WhiteElo "2325"]
[BlackElo "2206"]
[Annotator "RC"]
[PlyCount "81"]
[EventDate "2023.12.27"]
[EventType "swiss"]
[EventCountry "SWE"]
[SourceTitle "playchess.com"]
[Source "ChessBase"]
[SourceQuality "1"]
[TimeControl "40/5400+30:1800+30"]

1. d4 {[%emt 0:00:06]} Nf6 {[%emt 0:00:10]} 2. c4 {[%emt 0:00:10]} g6 {[%emt 0:00:04]} 3. Nc3 {[%emt 0:00:35]} Bg7 {[%emt 0:00:07]} 4. e4 {[%emt 0:00:11]} d6 {[%emt 0:00:06]} 5. h3 {[%emt 0:00:28]} O-O {[%emt 0:00:07]} 6. Be3 {[%emt 0:00:08]} Nc6 {[%emt 0:00:07]} 7. d5 {[%emt 0:09:39]} Ne5 {[%emt 0:00:09]} 8. f4 {[%emt 0:06:46]} Ned7 {[%emt 0:00:02]} 9. g4 {[%emt 0:02:53]} c6 {[%emt 0:00:15]} 10. Nge2 {[%emt 0:01:27]} Qa5 {[%emt 0:14:03]} 11. Qd2 {[%emt 0:15:31]} cxd5 {[%emt 0:14:14]} 12. cxd5 {[%emt 0:04:54]} Nc5 {[%emt 0:00:35]} 13. Rb1 {[%emt 0:03:54]} Nfxe4 {[%emt 0:02:07]} 14. Nxe4 {[%emt 0:02:19]} Nd3+ {[%emt 0:00:08]} 15. Kd1 {[%emt 0:00:05]} Qa4+ {[%emt 0:00:03]} 16. b3 {[%emt 0:02:13]} Qxe4 {[%emt 0:00:04]} 17. Ng3 {[%emt 0:02:20]} Qf3+ {[%emt 0:02:26]} 18. Be2 {[%emt 0:00:32]} Nf2+ {[%emt 0:05:47]} 19. Ke1 {[%emt 0:03:23]} Qxg3 {[%emt 0:00:17]} 20. Bxf2 {[%emt 0:00:05]} Qg2 {[%emt 0:04:22]} 21. Rg1 {[%emt 0:01:53]} Qe4 {[%emt 0:01:59]} 22. Rc1 {[%emt 0:02:16]} b5 {[%emt 0:00:19]} 23. Qe3 {[%emt 0:11:17]} Qxe3 {[%emt 0:03:59]} 24. Bxe3 {[%emt 0:00:07]} Bb7 {[%emt 0:01:22]} 25. Rc7 {[%emt 0:01:16]} Bxd5 {[%emt 0:00:07]} 26. Rxe7 {[%emt 0:01:11]} a6 {[%emt 0:03:34]} 27. Kf2 {[%emt 0:01:32]} Bf6 {[%emt 0:01:52]} 28. Rd7 {[%emt 0:03:29]} Bh4+ {[%emt 0:02:01]} 29. Kf1 {[%emt 0:00:06]} Rfd8 {[%emt 0:01:01]} 30. Rxd8+ {[%emt 0:04:01]} Bxd8 {[%emt 0:02:29]} 31. Bd3 {[%emt 0:00:51]} Rc8 {[%emt 0:04:11]} 32. Ke2 {[%emt 0:01:24]} Bf6 {[%emt 0:03:16]} 33. Rc1 {[%emt 0:02:54]} Re8 {[%emt 0:06:34]} 34. Kf2 {[%emt 0:01:58]} h6 {[%emt 0:14:00]} 35. a4 {[%emt 0:07:26]} Bxb3 {[%emt 0:07:58]} 36. axb5 {[%emt 0:00:10]} axb5 {[%emt 0:00:15]} 37. Bxb5 {[%emt 0:00:29]} Rb8 {[%emt 0:00:19]} 38. Bc6 {[%emt 0:05:38]} Be6 {[%emt 0:02:33]} 39. Rd1 {[%emt 0:01:27]} Rc8 {[%emt 0:03:09]} 40. Be4 {[%emt 0:01:43]} Rc4 {[%emt 0:03:01]} 41. Kf3 {[%emt 0:03:17]} 1/2-1/2